[Event "Titled Tuesday Blitz December 14 2021"]
[White "Yang, Kaiqi"]
[Black "Korchmar, Vasiliy"]
[WhiteFideId "8604398"]
[BlackFideId "24131750"]
[WhiteElo "2373"]
[BlackElo "2370"]
[Result "0-1"]
[Round "05"]
[TimeControl "180+1"]
[Date "2021.12.15"]
[WhiteClock "0:00:02"]
[BlackClock "0:00:09"]

1. e4 {[%clk 0:03:00]}  c5 {[%clk 0:02:59]} 2. Nc3 {[%clk 0:03:00]}  d6 {[%clk 0:02:58]} 3. d4 {[%clk 0:03:00]}  cxd4 {[%clk 0:02:58]} 4. Qxd4 {[%clk 0:03:01]}  Nc6 {[%clk 0:02:57]} 5. Qd2 {[%clk 0:02:55]}  Nf6 {[%clk 0:02:49]} 6. b3 {[%clk 0:02:54]}  e6 {[%clk 0:02:47]} 7. Bb2 {[%clk 0:02:54]}  Be7 {[%clk 0:02:47]} 8. O-O-O {[%clk 0:02:54]}  O-O {[%clk 0:02:47]} 9. f4 {[%clk 0:02:54]}  a6 {[%clk 0:02:33]} 10. g4 {[%clk 0:02:54]}  b5 {[%clk 0:02:31]} 11. g5 {[%clk 0:02:50]}  Nd7 {[%clk 0:02:22]} 12. Nf3 {[%clk 0:02:48]}  Bb7 {[%clk 0:02:20]} 13. Rg1 {[%clk 0:02:36]}  Rc8 {[%clk 0:02:19]} 14. Kb1 {[%clk 0:02:35]}  Nc5 {[%clk 0:02:11]} 15. Bd3 {[%clk 0:02:04]}  Nb4 {[%clk 0:02:11]} 16. f5 {[%clk 0:02:00]}  exf5 {[%clk 0:01:56]} 17. exf5 {[%clk 0:01:42]}  Bxf3 {[%clk 0:01:51]} 18. Rdf1 {[%clk 0:01:42]}  Ncxd3 {[%clk 0:01:33]} 19. cxd3 {[%clk 0:01:35]}  Bh5 {[%clk 0:01:33]} 20. a3 {[%clk 0:01:08]}  d5 {[%clk 0:01:22]} 21. f6 {[%clk 0:01:07]}  Nxd3 {[%clk 0:01:16]} 22. fxe7 {[%clk 0:01:03]}  Qxe7 {[%clk 0:01:16]} 23. Nxd5 {[%clk 0:01:00]}  Qe4 {[%clk 0:01:07]} 24. Nf6+ {[%clk 0:00:42]}  gxf6 {[%clk 0:01:05]} 25. gxf6+ {[%clk 0:00:43]}  Kh8 {[%clk 0:01:06]} 26. Qh6 {[%clk 0:00:18]}  Nxb2+ {[%clk 0:00:44]} 27. Ka2 {[%clk 0:00:17]}  Rg8 {[%clk 0:00:44]} 28. Rc1 {[%clk 0:00:10]}  Rcd8 {[%clk 0:00:19]} 29. Rxg8+ {[%clk 0:00:05]}  Rxg8 {[%clk 0:00:15]} 30. Rc8 {[%clk 0:00:05]}  Qg4 {[%clk 0:00:12]} 31. Rf8 {[%clk 0:00:03]}  Nd3 {[%clk 0:00:10]} 32. Rxg8+ {[%clk 0:00:03]}  Kxg8 {[%clk 0:00:11]} 33. Qxh5 {[%clk 0:00:03]}  Qg2+ {[%clk 0:00:09]} 34. Ka1 {[%clk 0:00:02]}  Qb2# {[%clk 0:00:09]} 0-1


[Site "https://www.chess.com"]

[Event "Titled Tuesday Blitz December 14 2021"]
[White "Yeremyan, Alen"]
[Black "Dubov, Daniil"]
[WhiteFideId "13308998"]
[BlackFideId "24126055"]
[WhiteElo "2158"]
[BlackElo "2749"]
[Result "0-1"]
[Round "05"]
[TimeControl "180+1"]
[Date "2021.12.14"]
[WhiteClock "0:00:13"]
[BlackClock "0:00:08"]

1. e4 {[%clk 0:02:56]}  e5 {[%clk 0:02:59]} 2. Nf3 {[%clk 0:02:53]}  Nc6 {[%clk 0:02:59]} 3. d4 {[%clk 0:02:54]}  exd4 {[%clk 0:03:00]} 4. Nxd4 {[%clk 0:02:55]}  Qh4 {[%clk 0:03:00]} 5. Nc3 {[%clk 0:02:49]}  Bb4 {[%clk 0:02:59]} 6. Qd3 {[%clk 0:02:31]}  Nf6 {[%clk 0:02:59]} 7. Bd2 {[%clk 0:02:22]}  Bxc3 {[%clk 0:02:38]} 8. Bxc3 {[%clk 0:02:22]}  Qxe4+ {[%clk 0:02:35]} 9. Qxe4+ {[%clk 0:02:12]}  Nxe4 {[%clk 0:02:36]} 10. Nxc6 {[%clk 0:02:12]}  Nxc3 {[%clk 0:02:34]} 11. Nd4 {[%clk 0:02:11]}  Ne4 {[%clk 0:02:29]} 12. f3 {[%clk 0:02:04]}  Nf6 {[%clk 0:02:26]} 13. O-O-O {[%clk 0:02:04]}  a6 {[%clk 0:02:16]} 14. Bd3 {[%clk 0:02:00]}  d6 {[%clk 0:02:07]} 15. Rhe1+ {[%clk 0:02:00]}  Kd8 {[%clk 0:02:07]} 16. c4 {[%clk 0:01:57]}  Bd7 {[%clk 0:02:06]} 17. Bf5 {[%clk 0:01:48]}  g6 {[%clk 0:02:02]} 18. Bc2 {[%clk 0:01:43]}  Re8 {[%clk 0:01:58]} 19. Nb3 {[%clk 0:01:40]}  Rxe1 {[%clk 0:01:56]} 20. Rxe1 {[%clk 0:01:41]}  c5 {[%clk 0:01:25]} 21. Nd2 {[%clk 0:01:35]}  Kc7 {[%clk 0:01:17]} 22. Re7 {[%clk 0:01:34]}  Rf8 {[%clk 0:01:17]} 23. Nb1 {[%clk 0:01:25]}  Kd8 {[%clk 0:01:15]} 24. Re1 {[%clk 0:01:24]}  Re8 {[%clk 0:01:14]} 25. Rd1 {[%clk 0:01:25]}  Kc7 {[%clk 0:01:14]} 26. Nc3 {[%clk 0:01:25]}  Bc6 {[%clk 0:01:13]} 27. Bb3 {[%clk 0:01:18]}  g5 {[%clk 0:01:11]} 28. Kd2 {[%clk 0:01:16]}  Re7 {[%clk 0:01:06]} 29. Bc2 {[%clk 0:01:14]}  b5 {[%clk 0:01:04]} 30. Bd3 {[%clk 0:01:02]}  Kb6 {[%clk 0:00:46]} 31. b3 {[%clk 0:00:57]}  h5 {[%clk 0:00:45]} 32. h3 {[%clk 0:00:56]}  h4 {[%clk 0:00:44]} 33. Ne2 {[%clk 0:00:52]}  Nh5 {[%clk 0:00:40]} 34. Rf1 {[%clk 0:00:50]}  Nf4 {[%clk 0:00:39]} 35. Nxf4 {[%clk 0:00:46]}  gxf4 {[%clk 0:00:40]} 36. Rc1 {[%clk 0:00:47]}  b4 {[%clk 0:00:34]} 37. Rd1 {[%clk 0:00:44]}  a5 {[%clk 0:00:33]} 38. Be2 {[%clk 0:00:40]}  a4 {[%clk 0:00:31]} 39. Bd3 {[%clk 0:00:40]}  Ra7 {[%clk 0:00:23]} 40. Bc2 {[%clk 0:00:39]}  axb3 {[%clk 0:00:22]} 41. axb3 {[%clk 0:00:39]}  Ra2 {[%clk 0:00:21]} 42. Kc1 {[%clk 0:00:40]}  Ra1+ {[%clk 0:00:19]} 43. Bb1 {[%clk 0:00:41]}  Kc7 {[%clk 0:00:19]} 44. Kb2 {[%clk 0:00:41]}  Ra8 {[%clk 0:00:19]} 45. Re1 {[%clk 0:00:42]}  Re8 {[%clk 0:00:19]} 46. Rxe8 {[%clk 0:00:35]}  Bxe8 {[%clk 0:00:20]} 47. Bd3 {[%clk 0:00:33]}  Bc6 {[%clk 0:00:20]} 48. Kc2 {[%clk 0:00:33]}  Kd7 {[%clk 0:00:21]} 49. Bf5+ {[%clk 0:00:33]}  Ke7 {[%clk 0:00:21]} 50. Bd3 {[%clk 0:00:34]}  Kf6 {[%clk 0:00:21]} 51. Bh7 {[%clk 0:00:31]}  Ke5 {[%clk 0:00:21]} 52. Kd3 {[%clk 0:00:32]}  d5 {[%clk 0:00:18]} 53. Bg8 {[%clk 0:00:31]}  f6 {[%clk 0:00:16]} 54. Bf7 {[%clk 0:00:31]}  dxc4+ {[%clk 0:00:07]} 55. Kxc4 {[%clk 0:00:31]}  Kd6 {[%clk 0:00:08]} 56. Bg8 {[%clk 0:00:31]}  Bb7 {[%clk 0:00:08]} 57. Kb5 {[%clk 0:00:13]}  Bd5 {[%clk 0:00:08]} 0-1


[Site "https://www.chess.com"]

[Event "Titled Tuesday Blitz December 14 2021"]
[White "Zierk, Steven"]
[Black "Punin, Andrii"]
[WhiteFideId "2034255"]
[BlackFideId "14112639"]
[WhiteElo "2494"]
[BlackElo "2357"]
[Result "1-0"]
[Round "05"]
[TimeControl "180+1"]
[Date "2021.12.14"]
[WhiteClock "0:00:22"]
[BlackClock "0:00:08"]

1. e4 {[%clk 0:03:00]}  c6 {[%clk 0:02:56]} 2. d4 {[%clk 0:03:00]}  d5 {[%clk 0:02:56]} 3. exd5 {[%clk 0:03:01]}  cxd5 {[%clk 0:02:56]} 4. Bd3 {[%clk 0:03:02]}  Nc6 {[%clk 0:02:56]} 5. c3 {[%clk 0:03:02]}  Qc7 {[%clk 0:02:56]} 6. Ne2 {[%clk 0:03:01]}  Bg4 {[%clk 0:02:56]} 7. O-O {[%clk 0:03:01]}  Bh5 {[%clk 0:02:56]} 8. f4 {[%clk 0:03:00]}  e6 {[%clk 0:02:53]} 9. Qe1 {[%clk 0:02:58]}  Nf6 {[%clk 0:02:41]} 10. Ng3 {[%clk 0:02:57]}  Bd6 {[%clk 0:02:39]} 11. Nxh5 {[%clk 0:02:57]}  Nxh5 {[%clk 0:02:39]} 12. g3 {[%clk 0:02:58]}  Nf6 {[%clk 0:02:26]} 13. Nd2 {[%clk 0:02:57]}  g6 {[%clk 0:02:18]} 14. Nf3 {[%clk 0:02:55]}  Kf8 {[%clk 0:02:17]} 15. f5 {[%clk 0:02:14]}  exf5 {[%clk 0:02:04]} 16. Bh6+ {[%clk 0:02:13]}  Kg8 {[%clk 0:02:03]} 17. Bxf5 {[%clk 0:02:00]}  Re8 {[%clk 0:01:49]} 18. Qd2 {[%clk 0:01:51]}  Bf8 {[%clk 0:01:36]} 19. Rae1 {[%clk 0:01:40]}  Ne4 {[%clk 0:01:28]} 20. Bxe4 {[%clk 0:01:36]}  dxe4 {[%clk 0:01:29]} 21. Bxf8 {[%clk 0:01:35]}  Rxf8 {[%clk 0:01:21]} 22. Rxe4 {[%clk 0:01:34]}  h5 {[%clk 0:01:15]} 23. Ng5 {[%clk 0:01:27]}  Nd8 {[%clk 0:01:12]} 24. Qe3 {[%clk 0:01:20]}  h4 {[%clk 0:01:09]} 25. g4 {[%clk 0:01:18]}  h3 {[%clk 0:01:08]} 26. Re7 {[%clk 0:01:14]}  Qc6 {[%clk 0:01:06]} 27. Qg3 {[%clk 0:01:07]}  Qd5 {[%clk 0:00:55]} 28. Ne4 {[%clk 0:01:04]}  Kg7 {[%clk 0:00:48]} 29. Nf6 {[%clk 0:00:56]}  Qc6 {[%clk 0:00:34]} 30. Rc7 {[%clk 0:00:45]}  Qe6 {[%clk 0:00:29]} 31. g5 {[%clk 0:00:41]}  Qe2 {[%clk 0:00:24]} 32. Nd7 {[%clk 0:00:35]}  Nc6 {[%clk 0:00:18]} 33. Nxf8 {[%clk 0:00:32]}  Rxf8 {[%clk 0:00:15]} 34. Qxh3 {[%clk 0:00:29]}  Qd2 {[%clk 0:00:10]} 35. Rfxf7+ {[%clk 0:00:20]}  Rxf7 {[%clk 0:00:10]} 36. Qh6+ {[%clk 0:00:20]}  Kg8 {[%clk 0:00:09]} 37. Rc8+ {[%clk 0:00:21]}  Rf8 {[%clk 0:00:08]} 38. Rxf8# {[%clk 0:00:22]} 1-0


[Site "https://www.chess.com"]

[Event "Titled Tuesday Blitz December 14 2021"]
[White "Agasarov, Benik"]
[Black "Horvath, Dominik"]
[WhiteFideId "13314823"]
[BlackFideId "1642561"]
[WhiteElo "2617"]
[BlackElo "2336"]
[Result "1-0"]
[Round "06"]
[TimeControl "180+1"]
[Date "2021.12.14"]
[WhiteClock "0:01:09"]
[BlackClock "0:00:12"]

1. d4 {[%clk 0:03:00]}  Nf6 {[%clk 0:02:57]} 2. c4 {[%clk 0:02:58]}  e6 {[%clk 0:02:56]} 3. Nc3 {[%clk 0:02:57]}  Bb4 {[%clk 0:02:56]} 4. Nf3 {[%clk 0:02:52]}  d5 {[%clk 0:02:56]} 5. Qa4+ {[%clk 0:02:47]}  Nc6 {[%clk 0:02:56]} 6. a3 {[%clk 0:02:47]}  Bxc3+ {[%clk 0:02:51]} 7. bxc3 {[%clk 0:02:48]}  Ne4 {[%clk 0:02:50]} 8. e3 {[%clk 0:02:48]}  Nxc3 {[%clk 0:02:44]} 9. Qc2 {[%clk 0:02:49]}  Ne4 {[%clk 0:02:44]} 10. Bd3 {[%clk 0:02:49]}  f5 {[%clk 0:02:43]} 11. O-O {[%clk 0:02:49]}  O-O {[%clk 0:02:41]} 12. Rb1 {[%clk 0:02:49]}  Rf6 {[%clk 0:02:38]} 13. a4 {[%clk 0:02:45]}  Qe7 {[%clk 0:02:36]} 14. cxd5 {[%clk 0:02:39]}  exd5 {[%clk 0:02:33]} 15. Qb3 {[%clk 0:02:39]}  Qe6 {[%clk 0:02:28]} 16. Ba3 {[%clk 0:02:39]}  b6 {[%clk 0:02:22]} 17. Rfc1 {[%clk 0:02:38]}  Bd7 {[%clk 0:02:19]} 18. Ne5 {[%clk 0:02:33]}  Nd2 {[%clk 0:02:10]} 19. Qa2 {[%clk 0:02:22]}  Nxb1 {[%clk 0:02:10]} 20. Nxd7 {[%clk 0:02:18]}  Qxd7 {[%clk 0:02:08]} 21. Qxb1 {[%clk 0:02:16]}  Na5 {[%clk 0:01:57]} 22. Qc2 {[%clk 0:02:07]}  h6 {[%clk 0:01:45]} 23. h4 {[%clk 0:02:01]}  c6 {[%clk 0:01:42]} 24. Bb4 {[%clk 0:01:55]}  f4 {[%clk 0:01:38]} 25. e4 {[%clk 0:01:51]}  dxe4 {[%clk 0:01:36]} 26. Bxe4 {[%clk 0:01:51]}  Re8 {[%clk 0:01:31]} 27. Bxa5 {[%clk 0:01:50]}  bxa5 {[%clk 0:01:28]} 28. Bxc6 {[%clk 0:01:50]}  Qg4 {[%clk 0:00:35]} 29. Bxe8 {[%clk 0:01:33]}  f3 {[%clk 0:00:35]} 30. g3 {[%clk 0:01:34]}  Qh3 {[%clk 0:00:31]} 31. Qc4+ {[%clk 0:01:34]}  Kf8 {[%clk 0:00:31]} 32. Qf1 {[%clk 0:01:31]}  Qxf1+ {[%clk 0:00:30]} 33. Kxf1 {[%clk 0:01:32]}  Kxe8 {[%clk 0:00:31]} 34. Rc8+ {[%clk 0:01:30]}  Kd7 {[%clk 0:00:26]} 35. Rg8 {[%clk 0:01:29]}  g6 {[%clk 0:00:23]} 36. Ke1 {[%clk 0:01:28]}  Re6+ {[%clk 0:00:22]} 37. Kf1 {[%clk 0:01:25]}  Rb6 {[%clk 0:00:12]} 38. Rg7+ {[%clk 0:01:19]}  Kd6 {[%clk 0:00:12]} 39. Rxg6+ {[%clk 0:01:19]}  Kd5 {[%clk 0:00:13]} 40. Rxb6 {[%clk 0:01:20]}  axb6 {[%clk 0:00:14]} 41. g4 {[%clk 0:01:20]}  b5 {[%clk 0:00:14]} 42. g5 {[%clk 0:01:18]}  hxg5 {[%clk 0:00:13]} 43. hxg5 {[%clk 0:01:12]}  bxa4 {[%clk 0:00:13]} 44. g6 {[%clk 0:01:13]}  Ke6 {[%clk 0:00:13]} 45. d5+ {[%clk 0:01:12]}  Kf6 {[%clk 0:00:13]} 46. d6 {[%clk 0:01:11]}  a3 {[%clk 0:00:12]} 47. d7 {[%clk 0:01:11]}  Ke7 {[%clk 0:00:12]} 48. g7 {[%clk 0:01:09]}  a2 {[%clk 0:00:12]} 49. d8=Q+ {[%clk 0:01:09]}  Kf7 {[%clk 0:00:12]} 50. g8=Q# {[%clk 0:01:09]} 1-0


[Site "https://www.chess.com"]

[Event "Titled Tuesday Blitz December 14 2021"]
[White "Alikhanov, Felix"]
[Black "Zierk, Steven"]
[WhiteFideId "4157427"]
[BlackFideId "2034255"]
[WhiteElo "2425"]
[BlackElo "2494"]
[Result "1/2-1/2"]
[Round "06"]
[TimeControl "180+1"]
[Date "2021.12.14"]
[WhiteClock "0:00:15"]
[BlackClock "0:00:11"]

1. e4 {[%clk 0:02:59]}  e6 {[%clk 0:02:55]} 2. d4 {[%clk 0:02:59]}  d5 {[%clk 0:02:56]} 3. Nd2 {[%clk 0:02:59]}  c5 {[%clk 0:02:55]} 4. Ngf3 {[%clk 0:02:59]}  cxd4 {[%clk 0:02:56]} 5. exd5 {[%clk 0:03:00]}  Qxd5 {[%clk 0:02:55]} 6. Bc4 {[%clk 0:02:51]}  Qd7 {[%clk 0:02:56]} 7. Nb3 {[%clk 0:02:49]}  Nc6 {[%clk 0:02:42]} 8. Qe2 {[%clk 0:02:47]}  a6 {[%clk 0:02:41]} 9. Bf4 {[%clk 0:02:43]}  b5 {[%clk 0:02:39]} 10. Bd3 {[%clk 0:02:43]}  Bb4+ {[%clk 0:02:38]} 11. Bd2 {[%clk 0:02:43]}  Bxd2+ {[%clk 0:02:37]} 12. Qxd2 {[%clk 0:02:43]}  e5 {[%clk 0:02:30]} 13. O-O-O {[%clk 0:02:41]}  Nge7 {[%clk 0:02:30]} 14. Rhe1 {[%clk 0:02:39]}  f6 {[%clk 0:02:29]} 15. c3 {[%clk 0:02:26]}  dxc3 {[%clk 0:02:24]} 16. Qxc3 {[%clk 0:02:25]}  Qc7 {[%clk 0:02:11]} 17. Kb1 {[%clk 0:02:18]}  Bg4 {[%clk 0:02:09]} 18. Rc1 {[%clk 0:02:10]}  Bxf3 {[%clk 0:01:50]} 19. gxf3 {[%clk 0:02:10]}  O-O {[%clk 0:01:50]} 20. Nc5 {[%clk 0:02:09]}  Nd4 {[%clk 0:01:42]} 21. f4 {[%clk 0:02:08]}  Nd5 {[%clk 0:01:30]} 22. Qd2 {[%clk 0:01:59]}  Nxf4 {[%clk 0:01:23]} 23. Ne6 {[%clk 0:01:51]}  Qxc1+ {[%clk 0:00:40]} 24. Rxc1 {[%clk 0:01:49]}  Ndxe6 {[%clk 0:00:40]} 25. Bf5 {[%clk 0:01:43]}  Nd4 {[%clk 0:00:38]} 26. Be4 {[%clk 0:01:42]}  Rad8 {[%clk 0:00:38]} 27. Qa5 {[%clk 0:01:36]}  Rd6 {[%clk 0:00:35]} 28. Qc7 {[%clk 0:01:30]}  Rfd8 {[%clk 0:00:32]} 29. a3 {[%clk 0:01:18]}  a5 {[%clk 0:00:23]} 30. Qb7 {[%clk 0:01:08]}  Nb3 {[%clk 0:00:20]} 31. Rc7 {[%clk 0:01:06]}  Rd1+ {[%clk 0:00:18]} 32. Ka2 {[%clk 0:01:05]}  Nc1+ {[%clk 0:00:17]} 33. Rxc1 {[%clk 0:01:01]}  Rxc1 {[%clk 0:00:17]} 34. Qxb5 {[%clk 0:01:01]}  h5 {[%clk 0:00:16]} 35. Qxa5 {[%clk 0:01:01]}  Rcc8 {[%clk 0:00:15]} 36. a4 {[%clk 0:00:54]}  Rd4 {[%clk 0:00:14]} 37. Bb7 {[%clk 0:00:53]}  Rb8 {[%clk 0:00:14]} 38. Qc7 {[%clk 0:00:40]}  Rdd8 {[%clk 0:00:09]} 39. a5 {[%clk 0:00:38]}  Nd3 {[%clk 0:00:08]} 40. Qc4+ {[%clk 0:00:35]}  Kh8 {[%clk 0:00:07]} 41. a6 {[%clk 0:00:35]}  Rd4 {[%clk 0:00:03]} 42. Qc7 {[%clk 0:00:26]}  Nb4+ {[%clk 0:00:04]} 43. Ka3 {[%clk 0:00:23]}  Nxa6 {[%clk 0:00:03]} 44. Bxa6 {[%clk 0:00:23]}  Rdb4 {[%clk 0:00:03]} 45. Qc3 {[%clk 0:00:19]}  Rxb2 {[%clk 0:00:02]} 46. Qxb2 {[%clk 0:00:18]}  Rxb2 {[%clk 0:00:03]} 47. Kxb2 {[%clk 0:00:18]}  Kh7 {[%clk 0:00:04]} 48. Kc3 {[%clk 0:00:18]}  Kg6 {[%clk 0:00:05]} 49. Kd3 {[%clk 0:00:17]}  Kf5 {[%clk 0:00:05]} 50. Ke3 {[%clk 0:00:18]}  Kg4 {[%clk 0:00:05]} 51. Bc8+ {[%clk 0:00:18]}  f5 {[%clk 0:00:06]} 52. f3+ {[%clk 0:00:16]}  Kg5 {[%clk 0:00:06]} 53. Bd7 {[%clk 0:00:11]}  g6 {[%clk 0:00:05]} 54. Be8 {[%clk 0:00:10]}  h4 {[%clk 0:00:05]} 55. Bf7 {[%clk 0:00:10]}  Kf6 {[%clk 0:00:05]} 56. Be8 {[%clk 0:00:11]}  Kg5 {[%clk 0:00:06]} 57. Bf7 {[%clk 0:00:10]}  Kf6 {[%clk 0:00:06]} 58. Be8 {[%clk 0:00:11]}  g5 {[%clk 0:00:06]} 59. h3 {[%clk 0:00:11]}  Ke7 {[%clk 0:00:06]} 60. Bg6 {[%clk 0:00:11]}  Kf6 {[%clk 0:00:06]} 61. Bh7 {[%clk 0:00:11]}  Ke6 {[%clk 0:00:06]} 62. Kf2 {[%clk 0:00:12]}  Kf6 {[%clk 0:00:06]} 63. Ke3 {[%clk 0:00:12]}  Ke6 {[%clk 0:00:07]} 64. Kf2 {[%clk 0:00:13]}  Kf6 {[%clk 0:00:08]} 65. Bg8 {[%clk 0:00:12]}  Kg7 {[%clk 0:00:07]} 66. Bb3 {[%clk 0:00:13]}  Kf6 {[%clk 0:00:07]} 67. Bc2 {[%clk 0:00:12]}  Ke6 {[%clk 0:00:08]} 68. Ke3 {[%clk 0:00:13]}  Kf6 {[%clk 0:00:08]} 69. Kf2 {[%clk 0:00:13]}  Ke6 {[%clk 0:00:09]} 70. Bd3 {[%clk 0:00:14]}  Kf6 {[%clk 0:00:09]} 71. Ba6 {[%clk 0:00:14]}  Ke6 {[%clk 0:00:09]} 72. Bc8+ {[%clk 0:00:15]}  Kf6 {[%clk 0:00:09]} 73. Ke3 {[%clk 0:00:14]}  Kg6 {[%clk 0:00:10]} 74. Bd7 {[%clk 0:00:12]}  Kf6 {[%clk 0:00:10]} 75. Bc8 {[%clk 0:00:13]}  Kg6 {[%clk 0:00:10]} 76. Kd3 {[%clk 0:00:14]}  Kf6 {[%clk 0:00:11]} 77. Kc4 {[%clk 0:00:15]}  g4 {[%clk 0:00:09]} 78. fxg4 {[%clk 0:00:14]}  fxg4 {[%clk 0:00:10]} 79. hxg4 {[%clk 0:00:13]}  Kg5 {[%clk 0:00:09]} 80. Kd3 {[%clk 0:00:13]}  h3 {[%clk 0:00:09]} 81. Bb7 {[%clk 0:00:14]}  Kxg4 {[%clk 0:00:09]} 82. Ke4 {[%clk 0:00:14]}  h2 {[%clk 0:00:09]} 83. Kxe5 {[%clk 0:00:14]}  Kg3 {[%clk 0:00:10]} 84. Bh1 {[%clk 0:00:14]}  Kf2 {[%clk 0:00:10]} 85. Kf4 {[%clk 0:00:15]}  Kg1 {[%clk 0:00:11]} 86. Kg3 {[%clk 0:00:15]}  Kxh1 {[%clk 0:00:11]} 87. Kf2 {[%clk 0:00:15]} 1/2-1/2


[Site "https://www.chess.com"]

[Event "Titled Tuesday Blitz December 14 2021"]
[White "Altman, Joshua"]
[Black "Jodorcovsky Werjivker, Paulo"]
[WhiteFideId "426210"]
[BlackFideId "3700305"]
[WhiteElo "1945"]
[BlackElo "2075"]
[Result "1-0"]
[Round "06"]
[TimeControl "180+1"]
[Date "2021.12.15"]
[WhiteClock "0:00:09"]
[BlackClock "0:00:23"]

1. d4 {[%clk 0:03:00]}  f5 {[%clk 0:02:58]} 2. Nc3 {[%clk 0:03:00]}  e6 {[%clk 0:02:56]} 3. e4 {[%clk 0:03:00]}  fxe4 {[%clk 0:02:55]} 4. Nxe4 {[%clk 0:03:00]}  Be7 {[%clk 0:02:51]} 5. Nf3 {[%clk 0:02:59]}  Nf6 {[%clk 0:02:51]} 6. Nxf6+ {[%clk 0:02:59]}  Bxf6 {[%clk 0:02:51]} 7. Bd3 {[%clk 0:03:00]}  O-O {[%clk 0:02:51]} 8. c3 {[%clk 0:02:59]}  Nc6 {[%clk 0:02:49]} 9. Qc2 {[%clk 0:02:58]}  h6 {[%clk 0:02:45]} 10. Be3 {[%clk 0:02:57]}  d5 {[%clk 0:02:40]} 11. O-O-O {[%clk 0:02:45]}  e5 {[%clk 0:02:38]} 12. dxe5 {[%clk 0:02:44]}  Nxe5 {[%clk 0:02:39]} 13. Nxe5 {[%clk 0:02:24]}  Bxe5 {[%clk 0:02:40]} 14. Kb1 {[%clk 0:02:15]}  c6 {[%clk 0:02:37]} 15. f3 {[%clk 0:02:15]}  Be6 {[%clk 0:02:31]} 16. Rde1 {[%clk 0:02:08]}  Qf6 {[%clk 0:02:18]} 17. f4 {[%clk 0:02:00]}  Bd6 {[%clk 0:02:17]} 18. Bd4 {[%clk 0:02:00]}  Qf7 {[%clk 0:02:15]} 19. Rhf1 {[%clk 0:01:36]}  c5 {[%clk 0:02:13]} 20. Be5 {[%clk 0:01:31]}  Bxe5 {[%clk 0:01:49]} 21. Rxe5 {[%clk 0:01:30]}  Qd7 {[%clk 0:01:45]} 22. f5 {[%clk 0:01:18]}  Bf7 {[%clk 0:01:41]} 23. f6 {[%clk 0:01:18]}  Rfe8 {[%clk 0:01:39]} 24. Bh7+ {[%clk 0:01:10]}  Kh8 {[%clk 0:01:38]} 25. fxg7+ {[%clk 0:01:10]}  Kxg7 {[%clk 0:01:39]} 26. Ref5 {[%clk 0:00:47]}  Bg8 {[%clk 0:01:19]} 27. Bxg8 {[%clk 0:00:42]}  Kxg8 {[%clk 0:01:20]} 28. Rf6 {[%clk 0:00:33]}  Qh7 {[%clk 0:00:46]} 29. Qxh7+ {[%clk 0:00:23]}  Kxh7 {[%clk 0:00:47]} 30. Rf7+ {[%clk 0:00:24]}  Kg6 {[%clk 0:00:47]} 31. Rxb7 {[%clk 0:00:24]}  Re2 {[%clk 0:00:48]} 32. Rff7 {[%clk 0:00:20]}  Rg8 {[%clk 0:00:43]} 33. Rxa7 {[%clk 0:00:17]}  Rxg2 {[%clk 0:00:43]} 34. h4 {[%clk 0:00:16]}  Rh2 {[%clk 0:00:40]} 35. Rf4 {[%clk 0:00:12]}  Re8 {[%clk 0:00:40]} 36. a4 {[%clk 0:00:10]}  Ree2 {[%clk 0:00:37]} 37. Rb7 {[%clk 0:00:10]}  c4 {[%clk 0:00:28]} 38. a5 {[%clk 0:00:07]}  Re1+ {[%clk 0:00:20]} 39. Ka2 {[%clk 0:00:08]}  Rhh1 {[%clk 0:00:21]} 40. Ka3 {[%clk 0:00:08]}  Ra1+ {[%clk 0:00:21]} 41. Kb4 {[%clk 0:00:08]}  Rhb1 {[%clk 0:00:22]} 42. Rf2 {[%clk 0:00:09]}  Ra2 {[%clk 0:00:22]} 43. Rb6+ {[%clk 0:00:06]}  Kh5 {[%clk 0:00:21]} 44. Rf5+ {[%clk 0:00:04]}  Kg4 {[%clk 0:00:21]} 45. Rxd5 {[%clk 0:00:04]}  Rbxb2+ {[%clk 0:00:21]} 46. Kxc4 {[%clk 0:00:04]}  Ra4+ {[%clk 0:00:20]} 47. Rb4 {[%clk 0:00:05]}  Rbxb4+ {[%clk 0:00:16]} 48. cxb4 {[%clk 0:00:05]}  Kxh4 {[%clk 0:00:17]} 49. Kb5 {[%clk 0:00:05]}  Ra1 {[%clk 0:00:17]} 50. a6 {[%clk 0:00:05]}  Kg3 {[%clk 0:00:18]} 51. Rh5 {[%clk 0:00:05]}  Kg4 {[%clk 0:00:16]} 52. Rxh6 {[%clk 0:00:05]}  Kf5 {[%clk 0:00:16]} 53. Rc6 {[%clk 0:00:06]}  Ke5 {[%clk 0:00:16]} 54. Kb6 {[%clk 0:00:06]}  Kd5 {[%clk 0:00:17]} 55. b5 {[%clk 0:00:06]}  Ra2 {[%clk 0:00:17]} 56. a7 {[%clk 0:00:06]}  Ra3 {[%clk 0:00:16]} 57. Kb7 {[%clk 0:00:07]}  Ra5 {[%clk 0:00:17]} 58. b6 {[%clk 0:00:04]}  Ra1 {[%clk 0:00:16]} 59. Rc7 {[%clk 0:00:05]}  Kd6 {[%clk 0:00:16]} 60. a8=Q {[%clk 0:00:05]}  Rxa8 {[%clk 0:00:17]} 61. Kxa8 {[%clk 0:00:05]}  Kd5 {[%clk 0:00:17]} 62. Rc1 {[%clk 0:00:05]}  Kd4 {[%clk 0:00:18]} 63. b7 {[%clk 0:00:06]}  Kd3 {[%clk 0:00:19]} 64. b8=Q {[%clk 0:00:07]}  Kd2 {[%clk 0:00:20]} 65. Qb2+ {[%clk 0:00:07]}  Kd3 {[%clk 0:00:20]} 66. Rc3+ {[%clk 0:00:08]}  Kd4 {[%clk 0:00:21]} 67. Qb4+ {[%clk 0:00:09]}  Kd5 {[%clk 0:00:22]} 68. Rc5+ {[%clk 0:00:09]}  Kd6 {[%clk 0:00:23]} 69. Qb6+ {[%clk 0:00:09]} 1-0


[Site "https://www.chess.com"]